Cogmind - Beta 10.2 @@@ ROGUE MODE // 2021.11.15 @ 14:05:59 // Winter2019/RPGLIKE Player: Arcade Dan Result: Destroyed by Y-45 Defender with Heavy Assault Rifle Performance ------------- Evolutions (1) 500 Regions Visited (2) 400 Robots Destroyed (8) 40 Value Destroyed (219) 219 Prototype IDs (0) 0 Alien Tech Used (0) 0 Bonus (0) 0 TOTAL SCORE: 1159 Bonus ------- None Cogmind --------- Core Integrity 0/600 Matter 295/300 Energy 273/275 System Corruption 0% Temperature Cool (2) Movement Flying (37) Location -9/Materials Parts ------- > --- POWER (2) -------- Ion Engine Light Ion Engine > --- PROPULSION (3) --- VTOL Module VTOL Module VTOL Module > --- UTILITY (3) ------ Heat Sink Visual Processing Unit Improved Sensor Array > --- WEAPON (1) ------- (None) > --- INVENTORY (2) ---- (None) Peak State ------------ > --- POWER ------------ Ion Engine Light Ion Engine > --- PROPULSION ------- VTOL Module VTOL Module VTOL Module > --- UTILITY ---------- Heat Sink Visual Processing Unit Improved Sensor Array > --- WEAPON ----------- Medium Laser > --- INVENTORY -------- (None) [Rating: 14] Favorites ----------- Power Light Ion Engine Engine Light Ion Engine Propulsion VTOL Module Leg Aluminum Leg Wheel Compact Wheel Hover Unit Hover Unit Flight Unit VTOL Module Utility Heat Sink Device Heat Sink Storage Large Matter Pod Processor Visual Processing Unit Weapon Medium Laser Energy Gun Medium Laser Build | -11 -10 -9 ------- Run | Scr Mat Mat Slots Evolved 5 | 4 . 1 Power 1 | . . 1 Propulsion 2 | 2 . . Utility 2 | 2 . . Weapon . | . . . Parts Attached 12 | . 11 1 Power 2 | . 1 1 Engine 2 | . 1 1 Core . | . . . Reactor . | . . . Propulsion 5 | . 5 . Treads . | . . . Leg . | . . . Wheel 1 | . 1 . Hover 1 | . 1 . Flight 3 | . 3 . Utility 5 | . 5 . Device 2 | . 2 . Storage 1 | . 1 . Processor 2 | . 2 . Hackware . | . . . Protection . | . . . Artifact . | . . . Weapon . | . . . Energy Gun . | . . . Energy Cannon . | . . . Ballistic Gun . | . . . Ballistic Cannon . | . . . Launcher . | . . . Special Weapon . | . . . Impact Weapon . | . . . Slashing Weapon . | . . . Piercing Weapon . | . . . Special Melee Weapon . | . . . Unidentified Prototypes . | . . . Parts Lost 1 | . . 1 Power . | . . . Propulsion . | . . . Utility . | . . . Weapon 1 | . . 1 Highest Loss Streak 1 | . . 1 Average Slot Usage (%) 86 | . 83 92 Engine 14 | . 12 22 Hover 1 | . 1 . Flight 28 | . 26 33 Device 20 | . 19 22 Processor 8 | . 8 11 Energy Gun 9 | . 12 4 Naked Turns . | . . . Heaviest Build 12 | 5 9 12 Greatest Support 20 | 10 20 20 Greatest Overweight (x) 1 | . 1 . Average Overweight (x) . | . . . Largest Inventory Capacity 2 | 1 1 2 Average Capacity 1 | . 1 1 Most Carried 1 | . 1 1 Average Carried . | . . . Final Capacity 2 | 1 1 2 Final Carried 1 | . 1 . Class Distribution -------------------- 100% | Mutant Dominant Class ---------------- Mutant | -10/Materials Mutant | -9/Materials Resources | -11 -10 -9 ----------- Run | Scr Mat Mat Matter Collected 310 | 200 110 . Remotely . | . . . Salvage Created 265 | . 265 . Parts 14 | . 14 . Haulers Intercepted . | . . . Recyclers Shooed . | . . . Parts Field Recycled . | . . . Retrieved Matter . | . . . Parts Self-Destructed . | . . . Prevented . | . . . Kills | -11 -10 -9 ------- Run | Scr Mat Mat Combat Hostiles Destroyed 7 | . 7 . Guns 7 | . 7 . Classes Destroyed 3 | . 3 . Builder 1 | . 1 . Swarmer 1 | . 1 . Grunt 6 | . 6 . Best Kill Streak 2 | . 2 . Combat Bots Only 2 | . 2 . Max Kills in Single Turn 1 | . 1 . Gunslinging . | . . . Exploded . | . . . Melee . | . . . Uniques/NPCs Destroyed . | . . . Combat | -11 -10 -9 -------- Run | Scr Mat Mat Damage Taken 863 | . 651 212 Core 725 | . 549 176 Absorbed by Shields . | . . . Redirected to Core 434 | . 310 124 Core Remaining (%) 64 | 100 29 . Volleys Fired 69 | . 63 6 Largest 1 | . 1 1 Hottest 50 | . 50 50 Shots Fired 69 | . 63 6 Gun 69 | . 63 6 Cannon . | . . . Launcher . | . . . Special . | . . . Kinetic . | . . . Thermal 69 | . 63 6 Explosive . | . . . Electromagnetic . | . . . Robot Hit Streak 8 | . 8 7 Robot Miss Streak 5 | . 5 . Penetration Max . | . . . Secondary Targets . | . . . Shots Hit Robots 45 | . 39 6 Core Hits 14 | . 13 1 Critical Hits . | . . . Critical Kills . | . . . Critical Parts Destroyed . | . . . Melee Attacks . | . . . Impact . | . . . Slashing . | . . . Piercing . | . . . Sneak Attacks . | . . . Combat Hostiles . | . . . Follow-up Attacks . | . . . Damage Inflicted 606 | . 531 75 Guns 606 | . 531 75 Cannons . | . . . Explosions . | . . . Melee . | . . . Ramming . | . . . Kinetic . | . . . Thermal 606 | . 531 75 Explosive . | . . . Electromagnetic . | . . . Impact . | . . . Slashing . | . . . Piercing . | . . . Highest Corruption . | . . . Average Corruption . | . . . Corruption Purged . | . . . Overload Shots . | . . . Overflow Damage . | . . . Projectiles . | . . . Explosions . | . . . Melee . | . . . Knockbacks . | . . . Impact . | . . . Kinetic . | . . . Secondary . | . . . Self-Inflicted Damage . | . . . Shots . | . . . Rammed . | . . . Targets Rammed . | . . . Kicked . | . . . Crushed . | . . . Highest Temperature 62 | . 24 62 Average Temperature 14 | . 8 34 Received Heat Transfer 294 | . 228 66 Siege Activations . | . . . Robots Corrupted . | . . . Combat Hostiles . | . . . Parts Fried . | . . . Impact Corruptions . | . . . Robots Melted . | . . . Combat Hostiles . | . . . Parts Melted 3 | . 3 . Heat Transferred 1776 | . 1554 222 Parts Sabotaged . | . . . Parts Stolen . | . . . Parts Stripped . | . . . Power Chain Reactions . | . . . Missiles Intercepted . | . . . Alert | -11 -10 -9 ------- Run | Scr Mat Mat Peak Influence 205 | . 205 166 Initial 86 | . . 86 Average 74 | . 59 118 Maximum Alert Level 1 | . 1 . Low Security (%) 96 | 100 94 100 Level 1 3 | . 5 . Level 2 . | . . . Level 3 . | . . . Level 4 . | . . . Level 5 . | . . . High Security . | . . . Max Security . | . . . Squads Dispatched 2 | . 2 . Investigation . | . . . Extermination . | . . . Reinforcement 2 | . 2 . Assault . | . . . Garrison . | . . . Intercept . | . . . Construction Impeded . | . . . Haulers Reinforced . | . . . Stealth | -11 -10 -9 --------- Run | Scr Mat Mat Distress Signals 1 | . . 1 Communications Jammed . | . . . Distress Signals . | . . . Times Spotted 20 | . 11 9 Peak Tracking Total 8 | . 5 8 Tactical Retreats 2 | . . 2 Traps | -11 -10 -9 ------- Run | Scr Mat Mat Traps Triggered . | . . . Indirectly . | . . . Trap Hack Attempts . | . . . Triggered . | . . . Disarmed . | . . . Reprogrammed . | . . . Reused . | . . . Traps Extracted . | . . . Installed . | . . . Triggered . | . . . Machines | -11 -10 -9 ---------- Run | Scr Mat Mat Machines Disabled . | . . . Max in Single Turn . | . . . Machines Sabotaged . | . . . Garrisons Compromised . | . . . Overloaded Fab Kills . | . . . Fab Network Shutdowns . | . . . Hacking | -11 -10 -9 --------- Run | Scr Mat Mat Machines Accessed . | . . . Terminals . | . . . Fabricators . | . . . Repair Stations . | . . . Recycling Units . | . . . Scanalyzers . | . . . Garrison Access . | . . . Total Hacks . | . . . Successful . | . . . Failed . | . . . Catastrophic . | . . . Database Lockouts . | . . . Manual . | . . . Terminals . | . . . Fabricators . | . . . Repair Stations . | . . . Recycling Units . | . . . Scanalyzers . | . . . Garrison Access . | . . . Terminal Hacks . | . . . Fabricator Hacks . | . . . Repair Station Hacks . | . . . Recycling Unit Hacks . | . . . Scanalyzer . | . . . Garrison Access Hacks . | . . . Unauthorized Hacks . | . . . Terminals . | . . . Fabricators . | . . . Repair Stations . | . . . Recycling Units . | . . . Scanalyzers . | . . . Garrison Access . | . . . Data Cores Recovered . | . . . Used . | . . . Hacking Detections . | . . . Full Trace Events . | . . . Feedback Events . | . . . Feedback Blocked . | . . . Robot Schematics Acquired . | . . . Robots Built . | . . . Matter . | . . . Time . | . . . Total Robot Build Rating . | . . . Part Schematics Acquired . | . . . Parts Built . | . . . Matter . | . . . Time . | . . . Total Part Build Rating . | . . . Parts Repaired . | . . . Time . | . . . Parts Recycled . | . . . Recycled Matter . | . . . Retrieved Matter . | . . . Retrieved Components . | . . . Parts Scanalyzed . | . . . Part Schematics Acquired . | . . . Parts Damaged . | . . . Bothacking | -11 -10 -9 ------------ Run | Scr Mat Mat Used RIF Installer . | . . . Robots Hacked . | . . . Non-combat . | . . . Combat . | . . . Robot Hacks Applied . | . . . Relay Couplers Released . | . . . Robots Rewired . | . . . Allies Hacked . | . . . Hacks Repelled . | . . . Allies | -11 -10 -9 -------- Run | Scr Mat Mat Total Allies . | . . . Largest Group . | . . . Highest-Rated Group . | . . . Highest-Rated Ally . | . . . Total Orders . | . . . Ally Attacks . | . . . Total Damage . | . . . Kills . | . . . Allies Corrupted . | . . . Allies Melted . | . . . Intel | -11 -10 -9 ------- Run | Scr Mat Mat Robot Analysis Total . | . . . Derelict Logs Recovered . | . . . Drone Launches . | . . . Drone Recoveries . | . . . Exploration | -11 -10 -9 ------------- Run | Scr Mat Mat Turns Passed 529 | 16 366 147 Spaces Moved 782 | 14 407 361 Core 1 | . 1 . Treads . | . . . Legs 27 | 14 13 . Wheels 35 | . 35 . Hover 64 | . 64 . Flight 655 | . 294 361 Fastest Speed 34 | 120 34 34 Average Speed 45 | 120 51 37 Slowest Speed 120 | 120 120 40 Overloaded Moves . | . . . Propulsion Burnouts . | . . . Robots Hopped 1 | . . 1 Cave-ins Triggered . | . . . Exploration Rate (%) 18 | 2 28 24 Regions Visited 2 Branch Regions . Pre-discovered Areas . | . . . Known Exits Taken . | . . . Unknown Exits Taken 2 | 1 1 . Scrap Searched . | . . . Spaces Dug . | . . . Terrain Destroyed . | . . . Melee . | . . . Projectile . | . . . AOE . | . . . Terrain Rammed . | . . . Walls Destroyed . | . . . Machines Disabled . | . . . Actions | -11 -10 -9 --------- Run | Scr Mat Mat Total 883 | 13 503 367 Wait 1 | . 1 . Move 778 | 13 406 359 Hop 1 | . . 1 Pick Up 11 | . 11 . Fast Attach . | . . . Attach 10 | . 9 1 Detach . | . . . Swap 2 | . 2 . Drop 5 | . 5 . Fire 69 | . 63 6 Melee . | . . . Ram . | . . . Kick . | . . . Crush . | . . . Escape Stasis . | . . . Rewire . | . . . Trap . | . . . Miscellaneous 6 | . 6 . Route ------- -11/Scrapyard -10/Materials -9/Materials History --------- Turn | Location | Event 1 | -11/Scrapyard | Discovered new exit (range 1) 16 | -11/Scrapyard | Upgraded with Propulsion slot (x2) 16 | -11/Scrapyard | Upgraded with Utility slot (x2) 17 | -11/Scrapyard | Entered Materials 217 | -10/Materials | Core integrity fell below 50% 318 | -10/Materials | Build established: Mutant 375 | -10/Materials | Discovered new exit (range 5) 383 | -10/Materials | Entered another Materials area 384 | -9/Materials | Core integrity fell below 50% 385 | -9/Materials | Reached level 2 385 | -9/Materials | Upgraded with Power slot (x1) 414 | -9/Materials | Core integrity fell below 20% 530 | -9/Materials | Destroyed by Y-45 Defender with Heavy Assault Rifle Last Messages --------------- 00300_ Acquired 10 matter. 00311_ O-16 Technician: "IFF HANDSHAKE FAILED. SECURING TERMINAL." 00321_ ALERT: Hostiles spotted, dispatching reinforcements to Terminal M004. 00326_ Terminal unresponsive. 00341_ G-34 Mercenary destroyed. 00361_ G-34 Mercenary heat damages Aluminum Leg, Ion Engine, Aluminum Leg, Sml. Laser. 00363_ Ion Engine melted. 00363_ G-34 Mercenary destroyed. 00375_ EXIT=FOUND LOCATION=UNKNOWN GOAL=ESCAPE 00385_ Reached level 2. 00385_ Upgraded: Power Slot (+1) 00385_ Upgraded: Inventory Capacity (+1) 00385_ Upgraded: Ranged Accuracy (+5) 00416_ Y-45 Defender heat damages Hvy. Assault Rifle. 00440_ Med. Laser destroyed. 00517_ W-16 Scout sends out distress signal. Map ----- +----------------------------------------------------+ | ???????# """ # """ + ########## """ #?????? | | ???????# """ # """ ## #????????# """ #?????? | | ???????# """ # ## #????????# #?????? | | ???????# # ## ##???????########?????? | | ???????####+#########+## ###########??????????? | | ????????# # #??????????? | | ????????# T + #??????????? | | ?????######+############ # #??????????? | | ?????# #????????## Y## #??????????? | | ?????# #?????????# ## #??????????? | | ?????# """ #?????????# ## #??????????? | | ?????# """"" #?????????# ## #??????????? | | ?????# """"" #????????## ## #???????? ? | | ?????# """"" #????????# ####/######## | | ?????# """ #????????+ ?? | | ?????# #????????# ?? ! #??? | | ???### #????????# ##+########### ##??? | | #### ####+#####????????## ## #?????????????? | | # ??# #?????????????# ## #?????????????? | | # " ?# #?????????????# ## #?????????????? | | # | ""?# #?????????????# ## #?????????????? | | # "" # #????????????## ## #?????????????? | | # """ # ############## # #?????????????? | | # "" + ########?????????????? | | # """ # u #????????????????????? | | # """ ##+###+##### ###u@ #????????????????????? | | # """??# # #?## ###????????????????????? | | # " ??# # #?? ??????????????????????? | | # ???# """ """ # #? u ??????????????????????? | | ?#####???# """ """ # ####t ?????????????????????? | | ?????????# """ """ # #??# ?????????????????????? | | ?????????# # #??#####????????????????????? | | ?????????# # #???????????????????????????? | | ?????????# # #???????????????????????????? | | ?????????###########+#???????????????????????????? | | ???????????# #???????????????????????????? | | ???????????# #???????????????????????????? | | ???????????# """ #???????????????????????????? | | ???????????# """ #???????????????????????????? | | ???????????# """ #???????????????????????????? | | ???????????# "Y" #???????????????????????????? | | ???????????# """ #???????????????????????????? | | ???????????# #???????????????????????????? | | ???????????#####+############## #??????????????? | | ????????????# #??????????????? | | ????????????# #??????????????? | | ????????????# #??????????????? | | ??????########### #??????????????? | | ??????# # """ """ #??????????????? | | ??????# # """""""""??#??????????????? | +----------------------------------------------------+ Best States ------------- Heat Dissipation 35 Energy Generation 15 Energy Capacity 275 Matter Stores 300 Matter Capacity 300 Sight Range 18 Robot Scan Range 13 Terrain Scan Density 10 Evasion (%) 63 Item Schematics ----------------- None Robot Schematics ------------------ None Fabricated ------------ Nothing Alien Tech Used ----------------- None Achievements -------------- None Challenges ------------ None RPGLIKE | -11 -10 -9 --------- Run | Scr Mat Mat Levels Raised 1 | . . 1 XP Earned 5500 | 3000 850 1650 XP Spent 4350 | 2850 100 1400 Upgrades 9 | 5 1 3 Power Slot 1 | . . 1 Propulsion Slot 2 | 2 . . Utility Slot 2 | 2 . . Mass Support 1 | . 1 . Inventory Capacity 2 | 1 . 1 Ranged Accuracy 1 | . . 1 Protomatter Created 88 | . 88 . Integrity Restored 123 | . 123 . Core 123 | . 123 . Protomatter Decayed . | . . . Game ------ Seed GodCloakBiocell Manual? 0 Play Time 00:08:30 Cumulative 18.9 hours Start 2021.11.15 @ 13:59:09 End 2021.11.15 @ 14:05:59 Sessions 1 Manual Loads 0 Difficulty Rogue Special Mode Winter2019/RPGLIKE Game No. 44 Rogue 28 Adventurer 16 Explorer 0 Win Type - Total 1 Types 0/0/0/1/0/0/0/0/0 Lore% 32 Gallery% 38 Achievement% 39 Wizard Run 0 Options --------- ASCII 0 Keyboard 0 Movement Arrows Keybinds 0 Fullscreen 1 Font 18/Cog Map View 76x50 Tactical HUD 1 Map Filters NONE Filters NONE Steam 1 RUN: 01927c28-5a72-4a85-8f67-80d11b4c0c4f